[Event "*** Titled Tuesday Blitz"]
[Site "Chess.com"]
[Date "2019.12.03"]
[Round "3"]
[White "WeAintSurePal"]
[Black "MPGM"]
[Result "1-0"]
[WhiteElo "2379"]
[BlackElo "2571"]
[TimeControl "180+2"]
[EndTime "13:38:00 PST"]
[Termination "WeAintSurePal won by checkmate"]

1. Nf3 {[%clk 0:03:01.9]} 1... d5 {[%clk 0:03:00.3]} 2. c4 {[%clk 0:03:02.1]}
2... e6 {[%clk 0:02:59.1]} 3. g3 {[%clk 0:03:01.9]} 3... c6 {[%clk 0:02:59.2]}
4. Bg2 {[%clk 0:03:02.9]} 4... b5 {[%clk 0:02:59.7]} 5. cxb5 {[%clk 0:03:00.4]}
5... cxb5 {[%clk 0:03:01.6]} 6. O-O {[%clk 0:03:01.1]} 6... Nf6 {[%clk
0:02:59.8]} 7. d3 {[%clk 0:03:01.8]} 7... Be7 {[%clk 0:02:57.4]} 8. b3 {[%clk
0:03:02.4]} 8... O-O {[%clk 0:02:57.7]} 9. Bb2 {[%clk 0:03:03.8]} 9... Bb7
{[%clk 0:02:56]} 10. Ne5 {[%clk 0:03:04]} 10... Nbd7 {[%clk 0:02:55.6]} 11. Nd2
{[%clk 0:03:01.8]} 11... Nxe5 {[%clk 0:02:53.5]} 12. Bxe5 {[%clk 0:03:03.7]}
12... Nd7 {[%clk 0:02:55]} 13. Bb2 {[%clk 0:03:03.5]} 13... Bf6 {[%clk
0:02:52.5]} 14. Bxf6 {[%clk 0:03:04.7]} 14... Nxf6 {[%clk 0:02:53]} 15. Rc1
{[%clk 0:03:05.2]} 15... Qb6 {[%clk 0:02:50]} 16. Qc2 {[%clk 0:03:04.1]} 16...
Rfc8 {[%clk 0:02:50.6]} 17. Qb2 {[%clk 0:03:05.4]} 17... a5 {[%clk 0:02:50.3]}
18. Nf3 {[%clk 0:03:02.4]} 18... b4 {[%clk 0:02:46.1]} 19. Ne5 {[%clk
0:03:01.4]} 19... h6 {[%clk 0:02:33.2]} 20. Rxc8+ {[%clk 0:02:57.4]} 20... Rxc8
{[%clk 0:02:33.5]} 21. Rc1 {[%clk 0:02:59.3]} 21... Rc5 {[%clk 0:02:21.4]} 22.
e3 {[%clk 0:02:22.7]} 22... Qc7 {[%clk 0:02:14.2]} 23. Rxc5 {[%clk 0:02:23]}
23... Qxc5 {[%clk 0:02:16.1]} 24. d4 {[%clk 0:02:20.5]} 24... Qc7 {[%clk
0:01:59.9]} 25. Bf1 {[%clk 0:02:20.2]} 25... Ne4 {[%clk 0:01:58.7]} 26. Bd3
{[%clk 0:02:19.9]} 26... Nc3 {[%clk 0:01:54.7]} 27. Qc2 {[%clk 0:02:13.1]} 27...
Qc8 {[%clk 0:01:44.3]} 28. h4 {[%clk 0:01:57.2]} 28... Ba6 {[%clk 0:01:43.6]}
29. a4 {[%clk 0:01:14.7]} 29... Bxd3 {[%clk 0:01:11.8]} 30. Qxd3 {[%clk
0:01:12.6]} 30... Ne4 {[%clk 0:01:11.9]} 31. Qb5 {[%clk 0:01:08.8]} 31... Kh7
{[%clk 0:00:30.3]} 32. Qd7 {[%clk 0:00:40.6]} 32... Qc2 {[%clk 0:00:16]} 33.
Qxf7 {[%clk 0:00:38.3]} 33... Nd2 {[%clk 0:00:14]} 34. Nd7 {[%clk 0:00:16.8]}
34... Qb1+ {[%clk 0:00:05.4]} 35. Kg2 {[%clk 0:00:16.7]} 35... Nxb3 {[%clk
0:00:04.5]} 36. Nf6+ {[%clk 0:00:16.5]} 36... Kh8 {[%clk 0:00:05.3]} 37. Qg8#
{[%clk 0:00:18.4]} 1-0

[Event "*** Titled Tuesday Blitz"]
[Site "Chess.com"]
[Date "2019.12.03"]
[Round "3"]
[White "AbasovN"]
[Black "GoldenShare"]
[Result "1-0"]
[WhiteElo "2789"]
[BlackElo "2454"]
[TimeControl "180+2"]
[EndTime "13:38:05 PST"]
[Termination "AbasovN won by resignation"]

1. e4 {[%clk 0:03:01.9]} 1... e6 {[%clk 0:03:00.9]} 2. Nf3 {[%clk 0:03:03.2]}
2... d5 {[%clk 0:02:57.2]} 3. exd5 {[%clk 0:03:05.1]} 3... exd5 {[%clk
0:02:58.2]} 4. d4 {[%clk 0:03:07]} 4... Nc6 {[%clk 0:02:59]} 5. Bd3 {[%clk
0:03:07.5]} 5... Bg4 {[%clk 0:02:57.8]} 6. Be3 {[%clk 0:03:00.7]} 6... Bd6
{[%clk 0:02:56.7]} 7. h3 {[%clk 0:03:00.4]} 7... Bh5 {[%clk 0:02:57.4]} 8. Nbd2
{[%clk 0:03:01.4]} 8... Bg6 {[%clk 0:02:32.1]} 9. Qe2 {[%clk 0:02:50.8]} 9...
Nge7 {[%clk 0:02:26.2]} 10. c3 {[%clk 0:02:49.7]} 10... O-O {[%clk 0:02:23.8]}
11. O-O {[%clk 0:02:49.3]} 11... Qd7 {[%clk 0:02:19.4]} 12. Rae1 {[%clk
0:02:48.9]} 12... Rae8 {[%clk 0:02:17]} 13. Bxg6 {[%clk 0:02:49.2]} 13... Nxg6
{[%clk 0:02:17.5]} 14. Qd3 {[%clk 0:02:51.1]} 14... Nce7 {[%clk 0:02:08.3]} 15.
Re2 {[%clk 0:02:49.8]} 15... c6 {[%clk 0:02:08.1]} 16. Rfe1 {[%clk 0:02:51]}
16... Qf5 {[%clk 0:02:06.7]} 17. Qxf5 {[%clk 0:02:49.4]} 17... Nxf5 {[%clk
0:02:08.6]} 18. g4 {[%clk 0:02:49.9]} 18... Nxe3 {[%clk 0:01:55.5]} 19. Rxe3
{[%clk 0:02:51.8]} 19... Rxe3 {[%clk 0:01:56.5]} 20. Rxe3 {[%clk 0:02:53.7]}
20... f6 {[%clk 0:01:55]} 21. Nf1 {[%clk 0:02:41.3]} 21... Kf7 {[%clk
0:01:53.8]} 22. Ne1 {[%clk 0:02:42.2]} 22... Rh8 {[%clk 0:01:36.8]} 23. Ng3
{[%clk 0:02:40.4]} 23... Bf4 {[%clk 0:01:28.8]} 24. Re2 {[%clk 0:02:38.4]} 24...
Bxg3 {[%clk 0:01:26.4]} 25. fxg3 {[%clk 0:02:40.3]} 25... Re8 {[%clk 0:01:27.8]}
26. Rxe8 {[%clk 0:02:38.8]} 26... Kxe8 {[%clk 0:01:29.7]} 27. Kf2 {[%clk
0:02:40.2]} 27... Ke7 {[%clk 0:01:29.4]} 28. Nd3 {[%clk 0:02:41.4]} 28... Kd6
{[%clk 0:01:29.4]} 29. h4 {[%clk 0:02:40.9]} 29... Nf8 {[%clk 0:01:27.6]} 30.
Kf3 {[%clk 0:02:40.5]} 30... Ne6 {[%clk 0:01:27.7]} 31. Ne1 {[%clk 0:02:35.3]}
31... b6 {[%clk 0:01:28.5]} 32. Ng2 {[%clk 0:02:36.4]} 32... c5 {[%clk
0:01:29.3]} 33. Ke3 {[%clk 0:02:37.5]} 33... Kc6 {[%clk 0:01:20.5]} 34. Kd3
{[%clk 0:02:36.9]} 34... Kd6 {[%clk 0:01:20.7]} 35. Ne3 {[%clk 0:02:38.1]} 35...
g6 {[%clk 0:01:19.6]} 36. Nc2 {[%clk 0:02:34.6]} 36... Ng7 {[%clk 0:01:16.1]}
37. Ke3 {[%clk 0:02:34.4]} 37... Ne6 {[%clk 0:01:11.9]} 38. Ne1 {[%clk 0:02:35]}
38... Ng7 {[%clk 0:01:12.2]} 39. Nd3 {[%clk 0:02:36.1]} 39... Ne6 {[%clk
0:01:13]} 40. a4 {[%clk 0:02:33.7]} 40... Ng7 {[%clk 0:01:03.5]} 41. b4 {[%clk
0:02:33.2]} 41... Ne6 {[%clk 0:00:57.6]} 42. dxc5+ {[%clk 0:02:30.7]} 42... bxc5
{[%clk 0:00:59.5]} 43. b5 {[%clk 0:02:31.9]} 43... Kc7 {[%clk 0:00:53.4]} 44. a5
{[%clk 0:02:31.4]} 44... Kd6 {[%clk 0:00:46.4]} 45. Nb2 {[%clk 0:02:25.5]} 45...
Ke5 {[%clk 0:00:37]} 46. c4 {[%clk 0:02:23.5]} 46... dxc4 {[%clk 0:00:35.8]} 47.
Nxc4+ {[%clk 0:02:25.4]} 47... Kd5 {[%clk 0:00:37.6]} 48. Kd3 {[%clk 0:02:24]}
48... Nc7 {[%clk 0:00:33.8]} 49. Ne3+ {[%clk 0:02:19.8]} 49... Ke5 {[%clk
0:00:27.7]} 50. Kc4 {[%clk 0:02:21.7]} 50... Ke4 {[%clk 0:00:29.1]} 51. b6
{[%clk 0:02:18.2]} 51... axb6 {[%clk 0:00:29.1]} 52. axb6 {[%clk 0:02:20.1]}
52... Na6 {[%clk 0:00:28.3]} 53. Nd5 {[%clk 0:02:20.5]} 53... f5 {[%clk
0:00:27.7]} 54. gxf5 {[%clk 0:02:03.8]} 54... gxf5 {[%clk 0:00:29.6]} 55. Ne7
{[%clk 0:02:03.7]} 55... h5 {[%clk 0:00:17.7]} 56. Nc6 {[%clk 0:01:52.1]} 56...
f4 {[%clk 0:00:17.4]} 57. gxf4 {[%clk 0:01:54]} 57... Kxf4 {[%clk 0:00:19.3]}
58. Kb5 {[%clk 0:01:55.4]} 58... c4 {[%clk 0:00:14]} 59. Kxa6 {[%clk 0:01:55.4]}
59... c3 {[%clk 0:00:15.3]} 60. b7 {[%clk 0:01:56.7]} 60... c2 {[%clk
0:00:15.9]} 61. b8=Q+ {[%clk 0:01:56.2]} 1-0

[Event "*** Titled Tuesday Blitz"]
[Site "Chess.com"]
[Date "2019.12.03"]
[Round "3"]
[White "champ2005"]
[Black "Azatic"]
[Result "1-0"]
[WhiteElo "2961"]
[BlackElo "2634"]
[TimeControl "180+2"]
[EndTime "13:38:06 PST"]
[Termination "champ2005 won on time"]

1. c4 {[%clk 0:03:01.2]} 1... Nf6 {[%clk 0:03:01.2]} 2. Nc3 {[%clk 0:03:02]}
2... c5 {[%clk 0:03:02.5]} 3. Nf3 {[%clk 0:03:01.7]} 3... g6 {[%clk 0:03:03]} 4.
g3 {[%clk 0:03:01.7]} 4... Bg7 {[%clk 0:03:04.1]} 5. Bg2 {[%clk 0:03:02.9]} 5...
O-O {[%clk 0:03:05.7]} 6. O-O {[%clk 0:03:03.7]} 6... Nc6 {[%clk 0:03:07.1]} 7.
d4 {[%clk 0:03:04.9]} 7... d6 {[%clk 0:03:08.3]} 8. d5 {[%clk 0:03:02.9]} 8...
Na5 {[%clk 0:03:08.9]} 9. Nd2 {[%clk 0:03:04.5]} 9... a6 {[%clk 0:03:10.1]} 10.
Rb1 {[%clk 0:03:01.4]} 10... Bd7 {[%clk 0:03:03]} 11. b3 {[%clk 0:03:00.2]}
11... b5 {[%clk 0:03:03.5]} 12. Bb2 {[%clk 0:03:01.6]} 12... Rb8 {[%clk
0:03:03.2]} 13. Qc2 {[%clk 0:03:02.2]} 13... h5 {[%clk 0:03:03.7]} 14. h3 {[%clk
0:02:52.4]} 14... Bh6 {[%clk 0:02:57.6]} 15. f4 {[%clk 0:02:49.3]} 15... bxc4
{[%clk 0:02:53.6]} 16. bxc4 {[%clk 0:02:49.4]} 16... Bg7 {[%clk 0:02:52]} 17. e4
{[%clk 0:02:48.8]} 17... Rb4 {[%clk 0:02:18.7]} 18. Qd3 {[%clk 0:02:15.2]} 18...
Nh7 {[%clk 0:01:44.6]} 19. Ba3 {[%clk 0:02:14.5]} 19... Rxb1 {[%clk 0:01:32]}
20. Rxb1 {[%clk 0:02:16.4]} 20... e6 {[%clk 0:01:25.1]} 21. e5 {[%clk 0:01:58]}
21... dxe5 {[%clk 0:01:09]} 22. Bxc5 {[%clk 0:01:58.1]} 22... exf4 {[%clk
0:00:59.7]} 23. Bxf8 {[%clk 0:01:49.6]} 23... Qxf8 {[%clk 0:01:01.6]} 24. gxf4
{[%clk 0:01:37.9]} 24... Qa3 {[%clk 0:00:50.6]} 25. Nb3 {[%clk 0:01:14.3]} 25...
Nxb3 {[%clk 0:00:45.1]} 26. axb3 {[%clk 0:01:16.2]} 26... Qc5+ {[%clk
0:00:32.3]} 27. Kh1 {[%clk 0:01:12.2]} 27... Nf6 {[%clk 0:00:27.7]} 28. b4
{[%clk 0:01:01.3]} 28... Qf2 {[%clk 0:00:26.6]} 29. d6 {[%clk 0:00:43]} 29...
Qxf4 {[%clk 0:00:18.1]} 30. c5 {[%clk 0:00:34.4]} 30... h4 {[%clk 0:00:17.2]}
31. c6 {[%clk 0:00:29]} 31... Bc8 {[%clk 0:00:15.3]} 32. Rf1 {[%clk 0:00:21.6]}
32... Qe5 {[%clk 0:00:12.8]} 33. d7 {[%clk 0:00:22]} 33... Nxd7 {[%clk
0:00:12.9]} 34. cxd7 {[%clk 0:00:23.9]} 34... Bxd7 {[%clk 0:00:14.2]} 35. Qxd7
{[%clk 0:00:25.8]} 35... Qxc3 {[%clk 0:00:15]} 36. Qxf7+ {[%clk 0:00:26.9]}
36... Kh7 {[%clk 0:00:16.1]} 37. Qxe6 {[%clk 0:00:27.5]} 37... Qxb4 {[%clk
0:00:16.3]} 38. Be4 {[%clk 0:00:26.6]} 1-0

[Event "*** Titled Tuesday Blitz"]
[Site "Chess.com"]
[Date "2019.12.03"]
[Round "3"]
[White "DonBroca"]
[Black "Noam_Vitenberg"]
[Result "0-1"]
[WhiteElo "2104"]
[BlackElo "2355"]
[TimeControl "180+2"]
[EndTime "13:38:08 PST"]
[Termination "Noam_Vitenberg won by checkmate"]

1. e4 {[%clk 0:02:58.5]} 1... e5 {[%clk 0:02:59.5]} 2. Nf3 {[%clk 0:02:59.4]}
2... Nc6 {[%clk 0:02:59.6]} 3. d4 {[%clk 0:03:00.2]} 3... exd4 {[%clk
0:02:58.5]} 4. Bc4 {[%clk 0:03:01.4]} 4... Bc5 {[%clk 0:02:53.5]} 5. O-O {[%clk
0:03:00.6]} 5... Nge7 {[%clk 0:02:37.3]} 6. Re1 {[%clk 0:02:44.7]} 6... O-O
{[%clk 0:02:37]} 7. Bg5 {[%clk 0:02:45.1]} 7... d6 {[%clk 0:02:11.3]} 8. h3
{[%clk 0:02:40]} 8... Be6 {[%clk 0:02:08.8]} 9. Bxe6 {[%clk 0:02:31.4]} 9...
fxe6 {[%clk 0:02:10.7]} 10. Nbd2 {[%clk 0:02:31.3]} 10... e5 {[%clk 0:02:04.6]}
11. Nb3 {[%clk 0:02:30.8]} 11... Qd7 {[%clk 0:02:03.4]} 12. c3 {[%clk
0:02:07.7]} 12... Bb6 {[%clk 0:01:57]} 13. cxd4 {[%clk 0:02:03]} 13... Nxd4
{[%clk 0:01:45.7]} 14. Nbxd4 {[%clk 0:02:01.9]} 14... exd4 {[%clk 0:01:47.6]}
15. Qb3+ {[%clk 0:01:36.9]} 15... Kh8 {[%clk 0:01:44.2]} 16. Rad1 {[%clk
0:01:37.3]} 16... Nc6 {[%clk 0:01:40.2]} 17. e5 {[%clk 0:01:09.6]} 17... dxe5
{[%clk 0:01:24.1]} 18. Nxe5 {[%clk 0:01:10.1]} 18... Nxe5 {[%clk 0:01:26]} 19.
Rxe5 {[%clk 0:01:10.4]} 19... Rae8 {[%clk 0:01:24.9]} 20. Rde1 {[%clk
0:00:45.9]} 20... h6 {[%clk 0:00:32.4]} 21. Bh4 {[%clk 0:00:41]} 21... Rxe5
{[%clk 0:00:13.8]} 22. Rxe5 {[%clk 0:00:40.5]} 22... Re8 {[%clk 0:00:15.3]} 23.
Rd5 {[%clk 0:00:18.6]} 23... Qf7 {[%clk 0:00:11.1]} 24. Rd8 {[%clk 0:00:11.1]}
24... Qg8 {[%clk 0:00:06.5]} 25. Qxg8+ {[%clk 0:00:11.2]} 25... Rxg8 {[%clk
0:00:07]} 26. Rd7 {[%clk 0:00:10.3]} 26... Re8 {[%clk 0:00:06.8]} 27. Kf1 {[%clk
0:00:10.8]} 27... Re4 {[%clk 0:00:05.7]} 28. f3 {[%clk 0:00:11.8]} 28... Rxh4
{[%clk 0:00:05.8]} 29. Rd8+ {[%clk 0:00:12.6]} 29... Kh7 {[%clk 0:00:05.6]} 30.
Rd7 {[%clk 0:00:13.2]} 30... Rh5 {[%clk 0:00:06.2]} 31. Ke2 {[%clk 0:00:13.9]}
31... Rc5 {[%clk 0:00:07.7]} 32. Kd3 {[%clk 0:00:14.5]} 32... Rc6 {[%clk
0:00:09.6]} 33. b4 {[%clk 0:00:14.1]} 33... Re6 {[%clk 0:00:10.3]} 34. a4 {[%clk
0:00:13]} 34... Re3+ {[%clk 0:00:07.8]} 35. Kc4 {[%clk 0:00:13.8]} 35... c6
{[%clk 0:00:07.4]} 36. a5 {[%clk 0:00:14.7]} 36... Rc3# {[%clk 0:00:08]} 0-1

[Event "*** Titled Tuesday Blitz"]
[Site "Chess.com"]
[Date "2019.12.03"]
[Round "3"]
[White "gemarin"]
[Black "SerGo055"]
[Result "0-1"]
[WhiteElo "2120"]
[BlackElo "2520"]
[TimeControl "180+2"]
[EndTime "13:38:15 PST"]
[Termination "SerGo055 won on time"]

1. d4 {[%clk 0:02:58.2]} 1... Nf6 {[%clk 0:02:48.6]} 2. c4 {[%clk 0:02:57.9]}
2... e6 {[%clk 0:02:49.8]} 3. Nc3 {[%clk 0:02:57.9]} 3... d5 {[%clk 0:02:50.1]}
4. Nf3 {[%clk 0:02:57.6]} 4... c6 {[%clk 0:02:50.8]} 5. e3 {[%clk 0:02:57.8]}
5... Nbd7 {[%clk 0:02:51.5]} 6. Qc2 {[%clk 0:02:57.1]} 6... Bd6 {[%clk
0:02:51.4]} 7. Be2 {[%clk 0:02:55.7]} 7... O-O {[%clk 0:02:51.1]} 8. O-O {[%clk
0:02:56.7]} 8... dxc4 {[%clk 0:02:44.9]} 9. Bxc4 {[%clk 0:02:57.2]} 9... Qe7
{[%clk 0:02:45.9]} 10. Ne4 {[%clk 0:02:48.5]} 10... Nxe4 {[%clk 0:02:38.3]} 11.
Qxe4 {[%clk 0:02:48.9]} 11... e5 {[%clk 0:02:39.3]} 12. Bb3 {[%clk 0:02:21.4]}
12... Nf6 {[%clk 0:02:35.1]} 13. Qh4 {[%clk 0:02:18.5]} 13... e4 {[%clk
0:02:30.9]} 14. Nd2 {[%clk 0:02:10.4]} 14... Re8 {[%clk 0:02:18.7]} 15. h3
{[%clk 0:01:55]} 15... Bf5 {[%clk 0:01:56.3]} 16. Nc4 {[%clk 0:01:53.8]} 16...
Bc7 {[%clk 0:01:53]} 17. Bd2 {[%clk 0:01:52.6]} 17... h6 {[%clk 0:01:41.5]} 18.
Rac1 {[%clk 0:01:48.4]} 18... Kh7 {[%clk 0:01:41.3]} 19. f4 {[%clk 0:01:39.5]}
19... exf3 {[%clk 0:01:33.4]} 20. Rxf3 {[%clk 0:01:39.5]} 20... Be4 {[%clk
0:01:30.9]} 21. Rff1 {[%clk 0:01:35.8]} 21... Bd3 {[%clk 0:01:26.7]} 22. Bc2
{[%clk 0:01:22.4]} 22... Bxc2 {[%clk 0:01:20.2]} 23. Rxc2 {[%clk 0:01:22.6]}
23... Ne4 {[%clk 0:01:20.7]} 24. Qxe7 {[%clk 0:01:10.5]} 24... Rxe7 {[%clk
0:01:22.6]} 25. Be1 {[%clk 0:01:08.9]} 25... Rd8 {[%clk 0:01:18.8]} 26. a4
{[%clk 0:01:08.1]} 26... Rd5 {[%clk 0:01:16.7]} 27. b3 {[%clk 0:00:58.5]} 27...
f5 {[%clk 0:01:16.4]} 28. Nb2 {[%clk 0:00:48.9]} 28... g5 {[%clk 0:00:57.6]} 29.
Nd3 {[%clk 0:00:45.9]} 29... Kg6 {[%clk 0:00:58]} 30. Bb4 {[%clk 0:00:43.3]}
30... Re8 {[%clk 0:00:51.9]} 31. g4 {[%clk 0:00:40.4]} 31... Ng3 {[%clk
0:00:39.7]} 32. Rf3 {[%clk 0:00:40.2]} 32... h5 {[%clk 0:00:35.3]} 33. Ne5+
{[%clk 0:00:33.4]} 33... Bxe5 {[%clk 0:00:32]} 34. dxe5 {[%clk 0:00:19.9]} 34...
h4 {[%clk 0:00:26.8]} 35. gxf5+ {[%clk 0:00:17.7]} 35... Nxf5 {[%clk 0:00:27.2]}
36. Bc3 {[%clk 0:00:18.3]} 36... Rd3 {[%clk 0:00:22.8]} 37. Kg2 {[%clk
0:00:14.6]} 37... Nxe3+ {[%clk 0:00:19.7]} 38. Kf2 {[%clk 0:00:11.7]} 38... Nd1+
{[%clk 0:00:20.7]} 39. Ke2 {[%clk 0:00:10.3]} 39... Rxc3 {[%clk 0:00:21.3]} 40.
Kxd1 {[%clk 0:00:08.5]} 40... Rxf3 {[%clk 0:00:21.5]} 0-1

[Event "*** Titled Tuesday Blitz"]
[Site "Chess.com"]
[Date "2019.12.03"]
[Round "3"]
[White "LonesomeGeorge1"]
[Black "xamax2000"]
[Result "1-0"]
[WhiteElo "2330"]
[BlackElo "2543"]
[TimeControl "180+2"]
[EndTime "13:38:16 PST"]
[Termination "LonesomeGeorge1 won by resignation"]

1. e4 {[%clk 0:03:01.9]} 1... c5 {[%clk 0:03:00.4]} 2. Nf3 {[%clk 0:03:02.7]}
2... d6 {[%clk 0:03:01.4]} 3. Bb5+ {[%clk 0:03:03.8]} 3... Bd7 {[%clk
0:03:01.5]} 4. Bxd7+ {[%clk 0:03:04.8]} 4... Qxd7 {[%clk 0:03:03.4]} 5. c4
{[%clk 0:03:05.3]} 5... Nf6 {[%clk 0:03:04.8]} 6. Nc3 {[%clk 0:03:06.1]} 6... g6
{[%clk 0:03:05.4]} 7. d4 {[%clk 0:03:04.5]} 7... cxd4 {[%clk 0:03:07.3]} 8. Nxd4
{[%clk 0:03:06.3]} 8... Bg7 {[%clk 0:03:03.1]} 9. h3 {[%clk 0:03:07.2]} 9... O-O
{[%clk 0:02:57]} 10. Be3 {[%clk 0:03:08.2]} 10... Rc8 {[%clk 0:02:53.6]} 11. b3
{[%clk 0:03:08.4]} 11... a6 {[%clk 0:02:52.7]} 12. Qd3 {[%clk 0:03:03.4]} 12...
Nc6 {[%clk 0:02:49.4]} 13. Rc1 {[%clk 0:02:57.4]} 13... b5 {[%clk 0:02:37.8]}
14. Nxc6 {[%clk 0:02:44.1]} 14... Rxc6 {[%clk 0:02:35.2]} 15. cxb5 {[%clk
0:02:43.8]} 15... axb5 {[%clk 0:02:36]} 16. O-O {[%clk 0:02:30.6]} 16... b4
{[%clk 0:02:32.3]} 17. Na4 {[%clk 0:02:24.9]} 17... Rac8 {[%clk 0:02:18.6]} 18.
Nb6 {[%clk 0:02:22.4]} 18... Rxc1 {[%clk 0:02:16.5]} 19. Bxc1 {[%clk 0:02:22.8]}
19... Qc6 {[%clk 0:02:14.2]} 20. Nxc8 {[%clk 0:02:23.3]} 20... Qxc8 {[%clk
0:02:16.1]} 21. Bd2 {[%clk 0:02:21.1]} 21... Qb7 {[%clk 0:02:16.8]} 22. f3
{[%clk 0:02:15.5]} 22... Nd7 {[%clk 0:02:16.6]} 23. Qd5 {[%clk 0:02:10.9]} 23...
Qa7+ {[%clk 0:02:16.6]} 24. Kh1 {[%clk 0:02:10]} 24... Qxa2 {[%clk 0:01:42.3]}
25. Bxb4 {[%clk 0:02:07.9]} 25... Be5 {[%clk 0:01:43.2]} 26. f4 {[%clk
0:01:46.1]} 26... Nf6 {[%clk 0:01:16.2]} 27. Qc4 {[%clk 0:01:31.1]} 27... Bb2
{[%clk 0:01:03.8]} 28. Qc2 {[%clk 0:01:29.5]} 28... Qa6 {[%clk 0:00:57.2]} 29.
Rd1 {[%clk 0:01:17.4]} 29... Bd4 {[%clk 0:00:57.8]} 30. Qc4 {[%clk 0:01:01.9]}
30... Qxc4 {[%clk 0:00:55.9]} 31. bxc4 {[%clk 0:01:03.8]} 31... Be3 {[%clk
0:00:57.1]} 32. e5 {[%clk 0:01:02.9]} 32... Ne4 {[%clk 0:00:53.5]} 33. Re1
{[%clk 0:00:47.1]} 33... Nf2+ {[%clk 0:00:53.5]} 34. Kg1 {[%clk 0:00:41.6]}
34... Ba7 {[%clk 0:00:54.3]} 35. Kf1 {[%clk 0:00:37.9]} 35... Nd3 {[%clk
0:00:54.1]} 36. Ra1 {[%clk 0:00:36.4]} 36... Be3 {[%clk 0:00:45]} 37. exd6
{[%clk 0:00:31.1]} 37... exd6 {[%clk 0:00:43.1]} 38. Bxd6 {[%clk 0:00:25.3]}
38... Nxf4 {[%clk 0:00:44.1]} 39. Bxf4 {[%clk 0:00:25]} 39... Bxf4 {[%clk
0:00:46]} 40. c5 {[%clk 0:00:25.6]} 40... Kf8 {[%clk 0:00:47.4]} 41. c6 {[%clk
0:00:26.8]} 41... Ke7 {[%clk 0:00:48.9]} 42. Rd1 {[%clk 0:00:27.7]} 42... Bd6
{[%clk 0:00:48.4]} 43. Ke2 {[%clk 0:00:28.2]} 43... f6 {[%clk 0:00:49.3]} 44.
Kf3 {[%clk 0:00:29.5]} 44... h5 {[%clk 0:00:50.5]} 45. Ke4 {[%clk 0:00:30.7]}
45... Bg3 {[%clk 0:00:50.2]} 46. Kd5 {[%clk 0:00:31.6]} 46... f5 {[%clk
0:00:51.2]} 47. Rb1 {[%clk 0:00:32.4]} 47... g5 {[%clk 0:00:50]} 48. Rb7+ {[%clk
0:00:33.5]} 48... Kd8 {[%clk 0:00:51.3]} 49. Ke6 {[%clk 0:00:34.8]} 49... f4
{[%clk 0:00:50]} 50. Kf5 {[%clk 0:00:36]} 50... g4 {[%clk 0:00:45.1]} 51. hxg4
{[%clk 0:00:37.9]} 51... hxg4 {[%clk 0:00:46.2]} 52. Kxg4 {[%clk 0:00:38.5]}
52... Kc8 {[%clk 0:00:47.7]} 53. Rf7 {[%clk 0:00:37.9]} 53... Kd8 {[%clk
0:00:48.5]} 54. Rxf4 {[%clk 0:00:39]} 54... Bxf4 {[%clk 0:00:45]} 55. Kxf4
{[%clk 0:00:40.9]} 1-0

[Event "*** Titled Tuesday Blitz"]
[Site "Chess.com"]
[Date "2019.12.03"]
[Round "3"]
[White "Alopekos"]
[Black "Alexander_Donchenko"]
[Result "1-0"]
[WhiteElo "2498"]
[BlackElo "2735"]
[TimeControl "180+2"]
[EndTime "13:38:19 PST"]
[Termination "Alopekos won by resignation"]

1. e4 {[%clk 0:03:01.9]} 1... c5 {[%clk 0:02:58.4]} 2. Nc3 {[%clk 0:03:02]} 2...
a6 {[%clk 0:02:58.3]} 3. Nf3 {[%clk 0:03:00.4]} 3... d6 {[%clk 0:02:58.4]} 4. d4
{[%clk 0:03:01.5]} 4... cxd4 {[%clk 0:02:59.2]} 5. Nxd4 {[%clk 0:03:03.4]} 5...
Nf6 {[%clk 0:03:00.7]} 6. Be3 {[%clk 0:03:04.5]} 6... e5 {[%clk 0:03:00.6]} 7.
Nb3 {[%clk 0:03:05.5]} 7... Be6 {[%clk 0:03:01.2]} 8. f4 {[%clk 0:03:06.6]} 8...
exf4 {[%clk 0:03:00]} 9. Bxf4 {[%clk 0:03:08.5]} 9... Nc6 {[%clk 0:03:01.1]} 10.
Qd2 {[%clk 0:03:10]} 10... d5 {[%clk 0:03:01.5]} 11. O-O-O {[%clk 0:03:11.3]}
11... Bb4 {[%clk 0:03:00.2]} 12. Qd3 {[%clk 0:03:12.4]} 12... Bxc3 {[%clk
0:02:34.4]} 13. Qxc3 {[%clk 0:03:14.3]} 13... O-O {[%clk 0:02:35.5]} 14. exd5
{[%clk 0:03:14.3]} 14... Nxd5 {[%clk 0:02:34.6]} 15. Qg3 {[%clk 0:03:10.2]}
15... Rc8 {[%clk 0:02:28.8]} 16. Bd6 {[%clk 0:03:00.5]} 16... Re8 {[%clk
0:02:23.5]} 17. Kb1 {[%clk 0:01:19]} 17... Ncb4 {[%clk 0:01:06.1]} 18. Bxb4
{[%clk 0:01:18.9]} 18... Nc3+ {[%clk 0:01:02]} 19. Bxc3 {[%clk 0:01:06.6]} 19...
Qxd1+ {[%clk 0:01:02.2]} 20. Nc1 {[%clk 0:01:07.7]} 20... Bg4 {[%clk 0:00:17.9]}
21. Bc4 {[%clk 0:00:54.8]} 21... Qd7 {[%clk 0:00:04.2]} 22. Be2 {[%clk
0:00:38.2]} 22... Rxe2 {[%clk 0:00:02.9]} 23. Nxe2 {[%clk 0:00:38.3]} 23... f6
{[%clk 0:00:03.4]} 24. Nd4 {[%clk 0:00:21.4]} 24... b5 {[%clk 0:00:04.4]} 25. h3
{[%clk 0:00:22.7]} 25... Bh5 {[%clk 0:00:05.1]} 26. a3 {[%clk 0:00:09.1]} 26...
Bg6 {[%clk 0:00:05.3]} 27. Qg4 {[%clk 0:00:05.6]} 27... Qc7 {[%clk 0:00:04.1]}
28. Qe6+ {[%clk 0:00:05.6]} 28... Bf7 {[%clk 0:00:04]} 29. Qxa6 {[%clk
0:00:06.1]} 29... Qc4 {[%clk 0:00:04.6]} 30. Nb3 {[%clk 0:00:03.8]} 30... Bg6
{[%clk 0:00:04.5]} 31. Ka1 {[%clk 0:00:02.9]} 31... Bxc2 {[%clk 0:00:04.8]} 32.
Nd4 {[%clk 0:00:04.1]} 32... Bd3 {[%clk 0:00:05.6]} 33. Qe6+ {[%clk 0:00:04.9]}
33... Qxe6 {[%clk 0:00:05.7]} 34. Nxe6 {[%clk 0:00:06.8]} 34... Be4 {[%clk
0:00:06.7]} 35. Rd1 {[%clk 0:00:06.6]} 35... Bxg2 {[%clk 0:00:06.9]} 36. Rg1
{[%clk 0:00:07]} 36... Bxh3 {[%clk 0:00:07]} 37. Nxg7 {[%clk 0:00:05.7]} 37...
Kf7 {[%clk 0:00:07.8]} 38. Nh5 {[%clk 0:00:05.4]} 38... f5 {[%clk 0:00:08.4]}
39. Rg7+ {[%clk 0:00:06.6]} 39... Ke6 {[%clk 0:00:09.9]} 40. Nf4+ {[%clk
0:00:07.7]} 40... Kd6 {[%clk 0:00:10.6]} 41. Nxh3 {[%clk 0:00:09.3]} 1-0